Cogmind - Beta 16 @@@ ROGUE MODE // 2026.02.05 @ 22:36:15 Player: Megaknight51 Result: Destroyed by D-53 Grenadier with Mini Grenade Launcher Performance ------------- Evolutions (0) 0 Regions Visited (2) 400 Robots Destroyed (25) 125 Value Destroyed (582) 582 Prototype IDs (0) 0 Alien Tech Used (0) 0 Bonus (0) 0 TOTAL SCORE: 1107 Bonus ------- None Cogmind --------- Core Integrity 0/250 Matter 158/300 Energy 100/100 System Corruption 2% Temperature Cool (0) Movement Core (700) Ox13 Location -10/Mines Parts ------- > --- POWER (1) -------- (None) > --- PROPULSION (2) --- (None) > --- UTILITY (2) ------ High-capacity Storage Unit Seismic Detector > --- WEAPON (2) ------- (None) > --- INVENTORY (20) --- Light Ion Engine Light Nuclear Core Light Nuclear Core Flight Unit Large Matter Pod (76) High-capacity Matter Pod (4) Structural Scanner Sensor Array Improved Terrain Scanner ECM Suite Light Armor Plating Hardened Light Armor Plating Hardened Light Armor Plating Hardened Light Armor Plating Hardened Light Armor Plating Assault Rifle Assault Rifle Light Cannon Hammer Peak State ------------ > --- POWER ------------ Ion Engine > --- PROPULSION ------- Light Treads Light Treads > --- UTILITY ---------- High-capacity Storage Unit Seismic Detector > --- WEAPON ----------- Light Cannon Rocket Launcher > --- INVENTORY -------- Light Ion Engine Light Nuclear Core Light Nuclear Core Light Treads Flight Unit Large Matter Pod High-capacity Matter Pod Structural Scanner Sensor Array Improved Terrain Scanner ECM Suite Light Armor Plating Hardened Light Armor Plating Hardened Light Armor Plating Hardened Light Armor Plating Hardened Light Armor Plating Assault Rifle Assault Rifle Light Cannon Hammer [Rating: 11] Favorites ----------- Power Ion Engine Engine Ion Engine Propulsion Light Treads Treads Light Treads Utility Seismic Detector Device Seismic Detector Storage High-capacity Storage Unit Weapon Light Cannon Ballistic Gun Assault Rifle Ballistic Cannon Light Cannon Launcher Rocket Launcher Build | -11 -10 -10 ------- Run | Yrd Mat Min Slots Evolved . | . . . Power . | . . . Propulsion . | . . . Utility . | . . . Weapon . | . . . Parts Attached 14 | 7 5 2 Power 2 | 1 1 . Engine 2 | 1 1 . Core . | . . . Reactor . | . . . Propulsion 3 | 2 . 1 Treads 3 | 2 . 1 Leg . | . . . Wheel . | . . . Hover . | . . . Flight . | . . . Utility 4 | 2 2 . Device 1 | 1 . . Storage 3 | 1 2 . Processor . | . . . Hackware . | . . . Protection . | . . . Artifact . | . . . Weapon 5 | 2 2 1 Energy Gun . | . . . Energy Cannon . | . . . Ballistic Gun 2 | 2 . . Ballistic Cannon 2 | . 2 . Launcher 1 | . . 1 Special Weapon . | . . . Impact Weapon . | . . . Slashing Weapon . | . . . Piercing Weapon . | . . . Special Melee Weapon . | . . . Unidentified Prototypes . | . . . Parts Lost 6 | . . 6 Power 1 | . . 1 Propulsion 3 | . . 3 Utility . | . . . Weapon 2 | . . 2 Highest Loss Streak 5 | . . 5 To Critical Strikes . | . . . Average Backups 13 | 1 13 19 Power 2 | 1 2 2 Propulsion 1 | . 1 1 Utility 7 | . 7 11 Weapon 2 | . 3 4 Tool/Special . | . . . Unused Backups 21 | . 4 17 Power 4 | . 1 3 Propulsion 1 | . . 1 Utility 13 | . 2 11 Weapon 3 | . 1 2 Tool/Special . | . . . Average Slot Usage (%) 99 | . 100 96 Engine 14 | . 14 14 Treads 27 | . 28 26 Device 14 | . 14 14 Storage 14 | . 14 14 Ballistic Gun 7 | . 8 . Ballistic Cannon 19 | . 19 20 Peak Build Rating 11 | 7 9 11 Average Rating 8 | 5 8 9 On Entrance 5 | . 7 9 Avg Prop Armor Cover (%) . | . . . Naked Turns . | . . . Heaviest Build 53 | 15 52 53 Greatest Support 40 | 40 40 40 Greatest Overweight (x) 2 | . 1 2 Average Overweight (x) . | . . 1 Largest Inventory Capacity 20 | 8 20 20 Average Capacity 15 | 7 16 20 Most Carried 20 | 4 19 20 Average Carried 13 | 1 13 19 Final Capacity 20 | 8 20 20 Final Carried 19 | 4 19 19 Class Distribution -------------------- 100% | Mutant Dominant Class ---------------- Mutant | -10/Materials Mutant | -10/Mines Resources | -11 -10 -10 ----------- Run | Yrd Mat Min Matter Collected 881 | 318 502 61 Remotely . | . . . Salvage Created 687 | 105 520 62 Parts 55 | 11 38 6 Haulers Intercepted 2 | . 2 . Recyclers Shooed 2 | 1 1 . Parts Field Recycled . | . . . Retrieved Matter . | . . . Parts Self-Destructed . | . . . Prevented . | . . . Parts Restored . | . . . Kills | -11 -10 -10 ------- Run | Yrd Mat Min Combat Hostiles Destroyed 22 | . 10 12 Guns 3 | . 3 . Cannons 10 | . 7 3 AOE 9 | . . 9 Classes Destroyed 9 | 2 6 1 Builder 2 | . 2 . Tunneler 4 | 3 . 1 Hauler 2 | . 2 . Recycler 1 | 1 . . Mechanic 1 | . 1 . Operator 2 | . 2 . Watcher 1 | . 1 . Grunt 12 | . 10 2 Assembled 10 | . . 10 Best Kill Streak 11 | 2 2 11 Combat Bots Only 10 | . 2 10 Max Kills in Single Turn 3 | 1 1 3 Gunslinging . | . . . Exploded 3 | . . 3 Melee . | . . . Uniques/NPCs Destroyed . | . . . Combat | -11 -10 -10 -------- Run | Yrd Mat Min Hostile Shots Fired 89 | . 40 49 Missed 21 | . 11 10 Hits 68 | . 29 39 Projectile 68 | . 29 39 AOE 7 | . . 7 Critical Strikes 1 | . 1 . Damage Taken 1091 | . 387 704 Core 253 | . 59 194 Absorbed by Shields . | . . . Core Remaining (%) 100 | 100 . . Volleys Fired 77 | 8 56 13 Largest 2 | 2 2 2 Hottest 63 | 40 60 63 Shots Fired 154 | 16 112 26 Gun 65 | 16 49 . Cannon 80 | . 63 17 Launcher 9 | . . 9 Special . | . . . Kinetic 145 | 16 112 17 Thermal . | . . . Explosive 9 | . . 9 Electromagnetic . | . . . Robot Hit Streak 22 | 10 22 5 Robot Miss Streak 3 | 1 3 3 Penetration Max . | . . . Secondary Targets . | . . . Shots Hit Robots 85 | 12 63 10 Core Hits 55 | 5 26 24 Critical Kills . | . . . Critical Parts Destroyed . | . . . Critical Strikes . | . . . Melee Attacks . | . . . Impact . | . . . Slashing . | . . . Piercing . | . . . Sneak Attacks . | . . . Combat Hostiles . | . . . Follow-up Attacks . | . . . Damage Inflicted 1834 | 165 966 703 Guns 567 | 165 402 . Cannons 728 | . 554 174 Explosions 529 | . . 529 Melee . | . . . Ramming 10 | . 10 . Kinetic 1295 | 165 956 174 Thermal . | . . . Explosive 529 | . . 529 Electromagnetic . | . . . Impact . | . . . Slashing . | . . . Piercing . | . . . Highest Corruption 2 | . 2 2 Average Corruption 1 | . 1 2 Corruption Purged . | . . . Corruption Blocked . | . . . Effects 25 | . 23 2 Message Errors 5 | . 5 . Matter Fused 3 | . 3 . Heat Flow Errors 5 | . 4 1 Energy Discharges 4 | . 3 1 Data Loss (minor) 5 | . 5 . Data Loss (major) 1 | . 1 . Misfires 1 | . 1 . Weapon Failures 1 | . 1 . Overload Shots . | . . . Overflow Damage 11 | . 8 3 Projectiles 8 | . 8 . Explosions 3 | . . 3 Melee . | . . . Knockbacks 10 | . 7 3 Impact . | . . . Kinetic 9 | . 6 3 Secondary 1 | . 1 . Self-Inflicted Damage 1 | . . 1 Shots 1 | . . 1 Rammed 4 | . 4 . Targets Rammed 5 | . 5 . Kicked . | . . . Crushed 1 | . 1 . Highest Temperature 286 | . 286 217 Average Temperature 81 | . 102 38 Received Heat Transfer 302 | . 240 62 Siege Activations . | . . . Martial Activations . | . . . Shielding Activations . | . . . Robots Disrupted . | . . . Combat Hostiles . | . . . Robots Corrupted . | . . . Combat Hostiles . | . . . Parts Fried . | . . . Impact Corruptions . | . . . Robots Melted . | . . . Combat Hostiles . | . . . Parts Melted . | . . . Heat Transferred . | . . . Parts Sabotaged . | . . . Parts Stolen . | . . . Parts Stripped . | . . . Power Chain Reactions . | . . . Alert | -11 -10 -10 ------- Run | Yrd Mat Min Maximum Alert Level . | . . . Low Security (%) 100 | 100 100 100 Level 1 . | . . . Level 2 . | . . . Level 3 . | . . . Level 4 . | . . . Level 5 . | . . . High Security . | . . . Max Security . | . . . Peak Influence 103 | 10 103 60 Initial 10 | . . 10 Average 20 | . 20 33 Influence Increases 446 | 20 330 96 Destroy 0b10 Robot/C 240 | . 200 40 Destroy 0b10 Robot/NC 65 | 20 40 5 Destroy Leader 76 | . 66 10 Successful Hack 19 | . 19 . Destroy Structure 46 | . 5 41 Influence Decreases 446 | 20 302 124 Entered New Map 18 | . . 18 Time Decay 392 | 20 302 70 Lost Part 36 | . . 36 Squads Dispatched 2 | . 2 . Investigation . | . . . Extermination . | . . . Reinforcement 2 | . 2 . Assault . | . . . Garrison . | . . . Intercept . | . . . Searches Triggered . | . . . Construction Impeded . | . . . Haulers Reinforced . | . . . Active Scanning Responses . | . . . Cargo Convoy Interrupts . | . . . Stealth | -11 -10 -10 --------- Run | Yrd Mat Min Distress Signals . | . . . Communications Jammed . | . . . Distress Signals . | . . . Times Spotted 40 | . 25 15 Peak Tracking Total 8 | . 6 8 Tactical Retreats . | . . . Traps | -11 -10 -10 ------- Run | Yrd Mat Min Traps Triggered 2 | . 2 . Indirectly . | . . . Trap Hack Attempts . | . . . Triggered . | . . . Disarmed . | . . . Reprogrammed . | . . . Reused . | . . . Traps Extracted . | . . . Installed . | . . . Triggered . | . . . Machines | -11 -10 -10 ---------- Run | Yrd Mat Min Machines Disabled . | . . . Max in Single Turn . | . . . Machines Repaired . | . . . Machines Dismantled . | . . . Machines Sabotaged . | . . . Overloaded Fab Kills . | . . . Hacking | -11 -10 -10 --------- Run | Yrd Mat Min Machines Accessed 4 | . 4 . Terminals 4 | . 4 . Fabricators . | . . . Repair Stations . | . . . Recycling Units . | . . . Scanalyzers . | . . . Garrison Access . | . . . Total Hacks 9 | . 9 . Successful 5 | . 5 . Failed 4 | . 4 . Catastrophic 2 | . 2 . Database Lockouts . | . . . Manual 4 | . 4 . Terminals 9 | . 9 . Fabricators . | . . . Repair Stations . | . . . Recycling Units . | . . . Scanalyzers . | . . . Garrison Access . | . . . Terminal Hacks 5 | . 5 . Robot Analysis 2 | . 2 . Branch Access Points 1 | . 1 . Terminal Index 1 | . 1 . Dispatch Records 1 | . 1 . Fabricator Hacks . | . . . Repair Station Hacks . | . . . Recycling Unit Hacks . | . . . Scanalyzer . | . . . Garrison Access Hacks . | . . . Unauthorized Hacks . | . . . Terminals . | . . . Fabricators . | . . . Repair Stations . | . . . Recycling Units . | . . . Scanalyzers . | . . . Garrison Access . | . . . Data Cores Recovered . | . . . Used . | . . . Hacking Detections 4 | . 4 . Full Trace Events . | . . . Feedback Events . | . . . Feedback Blocked . | . . . Robot Schematics Acquired . | . . . Robots Built . | . . . Authchips . | . . . Time . | . . . Total Robot Build Rating . | . . . Part Schematics Acquired . | . . . Parts Built . | . . . Authchips . | . . . Time . | . . . Total Part Build Rating . | . . . Part Studies Acquired . | . . . Parts Repaired . | . . . Time . | . . . Parts Recycled . | . . . Recycled Matter . | . . . Retrieved Matter . | . . . Retrieved Components . | . . . Parts Scanalyzed . | . . . Part Schematics Acquired . | . . . Parts Damaged . | . . . Bothacking | -11 -10 -10 ------------ Run | Yrd Mat Min Used RIF Installer . | . . . Robots Hacked . | . . . Non-combat . | . . . Combat . | . . . Robot Hacks Applied . | . . . Relay Couplers Released . | . . . Fabnet Peak Effective % . | . . . Robots Rewired . | . . . Allies Hacked . | . . . Hacks Repelled . | . . . Allies | -11 -10 -10 -------- Run | Yrd Mat Min Total Allies . | . . . Largest Group . | . . . Highest-Rated Group . | . . . Highest-Rated Ally . | . . . Total Orders . | . . . Ally Attacks . | . . . Total Damage . | . . . Kills . | . . . Allies Corrupted . | . . . Allies Melted . | . . . Intel | -11 -10 -10 ------- Run | Yrd Mat Min Active Infowar (turns) 1927 | 44 1727 156 Seismic 1927 | 44 1727 156 Robot Analysis Total 2 | . 2 . Derelict Logs Recovered . | . . . Drone Launches . | . . . Drone Recoveries . | . . . Exploration | -11 -10 -10 ------------- Run | Yrd Mat Min Turns Passed 2039 | 156 1727 156 Spaces Moved 867 | 77 744 46 Core 4 | 4 . . Treads 863 | 73 744 46 Legs . | . . . Wheels . | . . . Hover . | . . . Flight . | . . . Fastest Speed 50 | 50 160 240 Average Speed 191 | 154 192 243 Slowest Speed 320 | 160 240 320 Overloaded Moves . | . . . Propulsion Burnouts . | . . . Robots Hopped . | . . . Potential Cave-ins . | . . . Cave-ins Triggered . | . . . Exploration Rate (%) 35 | 4 88 15 Regions Visited 2 Branch Regions 1 Pre-discovered Areas . | . . . Known Exits Taken 1 | . 1 . Unknown Exits Taken 1 | 1 . . Scrap Searched . | . . . Spaces Dug . | . . . Terrain Destroyed 59 | . . 59 Melee . | . . . Projectile . | . . . AOE 59 | . . 59 Terrain Rammed . | . . . Walls Destroyed . | . . . Machines Disabled . | . . . Actions | -11 -10 -10 --------- Run | Yrd Mat Min Total 1087 | 95 928 64 Wait 91 | . 91 . Move 865 | 76 743 46 Hop . | . . . Pick Up 24 | 4 19 1 Fast Attach 8 | 7 . 1 Attach 1 | . . 1 Detach 1 | . . 1 Swap 6 | . 6 . Drop 9 | . 8 1 Fire 77 | 8 56 13 Melee . | . . . Ram . | . . . Kick . | . . . Crush 5 | . 5 . Escape Stasis . | . . . Rewire . | . . . Trap . | . . . Miscellaneous . | . . . Route ------- -11/Scrapyard -10/Materials (discovered 4 exits: [*Mat x3] / *Min) -10/Mines History --------- Turn | Location | Event 30 | -11/Scrapyard | Discovered new exit (range 16) 157 | -11/Scrapyard | Entered Materials 278 | -10/Materials | Identified exit to Mines 310 | -10/Materials | Build established: Mutant 648 | -10/Materials | Discovered new exit (range 16) 970 | -10/Materials | Discovered new exit (range 16) 1399 | -10/Materials | Discovered new exit (range 5) 1884 | -10/Materials | Entered Mines 1946 | -10/Mines | Assembled infested the area 1950 | -10/Mines | Received a Rocket Launcher from a helpful Derelict 1992 | -10/Mines | Core integrity fell below 50% 2023 | -10/Mines | Destroyed 10 combat bots 2037 | -10/Mines | Core integrity fell below 20% 2040 | -10/Mines | Destroyed by D-53 Grenadier with Mini Grenade Launcher Last Messages --------------- 01983_ as-82763 destroyed. 01983_ T-07 Excavator destroyed. 01983_ as-13642 destroyed. 01986_ as-22315 destroyed. 01987_ The unstable cave ceiling collapses. 01990_ as-81183 knocked back. 01993_ The unstable cave ceiling collapses. 01999_ Destroyed Asb. Hover Unit. 01999_ as-81183 destroyed. 02002_ as-97181 destroyed. 02002_ as-76235 destroyed. 02002_ as-09073 destroyed. 02005_ The unstable cave ceiling collapses. 02006_ as-28811 destroyed. 02020_ System corrupted: Heat flow error (+237). 02032_ Lgt. Treads destroyed. 02037_ Rocket Launcher destroyed. 02039_ Lgt. Cannon destroyed. 02040_ Ion Engine destroyed. 02040_ Lgt. Treads destroyed. Map ----- +----------------------------------------------------+ | ??????????????????????????????????????????? | | ??????????????????????????????????????????? | | ??????????????????????????????????????????? | | ??????????????????????????????????????????? | | ??????????????????????????????????????????? | | ??????????????????????????????????????????? | | ??????????????????????????????????????????? | | ??????????????????????????????????????????? | | ??????????????????????????????????????????? | | ??????????????????????????????????????????? | | ??????????????????????????????????????????? | | ??????????????????????????????????????????? | | ??????????????????????????????????????????? | | ??????????????????????????????????????????? | | ???########???????????????????????????????? | | ???# #???????????????????????????????? | | ???# #???????????????????????????????? | | ???# #???????????????????????????????? | | ???# #???????????????????????????????? | | ???#[ [ #???????????????? #?????????????? | | ???#=* #????#######???? #?????????????? | | ???# ! #?#### # ##? #??????????????? | | ???######r### # #???????????????? | | ????????# #???????????????? | | ????????# #### #???????????????? | | ???###??# #?# @ #???????????????? | | ??## #?# ### #???????????????? | | ??# ## #???????????????? | | ??# #####???????????????? | | ??# ##???????????????????? | | ??# ##????????????????????? | | ?# % ##?????????????????????? | | ?# d #??????????????????????? | | ?## d ##??????????????????????? | | ??# ##???????????????????????? | | ??## # #????????????????????????? | | ???## #????????????????????????? | | ???? ????????????????????????? | | ???# ???????????????????????? | | ???### # #??????????????????????? | | ????# ##### #??????????????????????? | | ????# ?????????????????????????????? | | ??????# ??????????????????????????????? | | ???????? ??????????????????????????????? | | ??????????????????????????????????????????? | | ??????????????????????????????????????????? | | ??????????????????????????????????????????? | | ??????????????????????????????????????????? | | ??????????????????????????????????????????? | | ??????????????????????????????????????????? | +----------------------------------------------------+ Best States ------------- Heat Dissipation 25 Energy Generation 10 Energy Capacity 250 Matter Stores 300 Matter Capacity 300 Sight Range 16 Terrain Scan Density 10 Evasion (%) 40 Recoil Reduction 2 Item Schematics ----------------- None Robot Schematics ------------------ None Fabricated ------------ Nothing Repaired ---------- Nothing Studied --------- None Alien Tech Used ----------------- None Achievements -------------- None Challenges ------------ None Game ------ Seed MissileBiometalKatana Manual? 0 Play Time 00:10:22 Cumulative 53.8 hours Start 2026.02.05 @ 20:52:54 End 2026.02.05 @ 22:36:15 Sessions 1 Manual Loads 0 Difficulty Rogue Special Mode None Game No. 104 Rogue 104 Adventurer 0 Explorer 0 Win Type - Total 0 Types 0/0/0/0/0/0/0/0/0/0 Lore% 30 Gallery% 29 Achievement% 26 Wizard Run 0 Options --------- Layout 0 ASCII 0 Keyboard 1 Movement Arrows Keybinds 0 Fullscreen 1 Font 18/Smallcaps Map View 38x25 Zoom Use 70% Tactical HUD 1 Map Filters NONE Filters NONE Steam 1 RUN: 0b2e5df0-d3a5-419f-8284-e204931dd148